fUSD/lending_fUSD_20250211
["ID","MTS","AMOUNT","RATE_DAILY","PERIOD"]
[352716356,1739271044239,-500.0,0.00010958,2]
[352716358,1739271044248,-370.92956257,0.00010958,2]
[352716360,1739271044258,-799.04,0.00010958,2]
[352716362,1739271044267,-509.89479419,0.00010958,2]
[352716364,1739271044276,-1177.04,0.00010958,2]
[352716366,1739271044286,-507.99461049,0.00010958,2]
[352716368,1739271044296,-500.0,0.00010958,2]
[352716370,1739271044306,-500.0,0.00010958,2]
[352716372,1739271044315,-500.0,0.00010958,2]
[352716374,1739271044324,-500.0,0.00010958,2]
[352716376,1739271044334,-500.0,0.00010958,2]
[352716378,1739271044343,-1304.63,0.00010958,2]
[352716380,1739271044353,-520.83,0.00010958,2]
[352716382,1739271044362,-500.0,0.00010958,2]
[352716384,1739271044371,-500.0,0.00010958,2]
[352716386,1739271044381,-500.0,0.00010958,2]
[352716388,1739271044390,-586.6867108,0.00010958,2]
[352716390,1739271044399,-500.0,0.00010958,2]
[352716392,1739271044409,-500.84408562,0.00010958,2]
[352716394,1739271044418,-850.61,0.00010958,2]
[352716396,1739271044427,-500.0,0.00010958,2]
[352716398,1739271044437,-500.0,0.00010958,2]
[352716400,1739271044446,-500.0,0.00010958,2]
[352716402,1739271044456,-952.21,0.00010958,2]
[352716404,1739271044466,-503.16866585,0.00010958,2]
[352716406,1739271044475,-500.0,0.00010958,2]
[352716408,1739271044485,-648.06,0.00010958,2]
[352716410,1739271044495,-500.0,0.00010958,2]
[352716412,1739271044506,-1390.64,0.00010958,2]
[352716414,1739271044515,-588.91,0.00010958,2]
[352716416,1739271044525,-500.0,0.00010958,2]
[352716418,1739271044535,-896.09,0.00010958,2]
[352716420,1739271044544,-349.51570095,0.00010958,2]
[352716424,1739271044570,-150.48429905,0.00010958,2]
[352716426,1739271044579,-500.0,0.00010958,2]
[352716428,1739271044588,-456.0138212,0.00010958,2]
[352716431,1739271044611,-300.0,9.79e-05,2]
[352716433,1739271044620,-43.9861788,0.00010958,2]
[352716435,1739271044630,-500.0,0.00010958,2]
[352716437,1739271044639,-500.0,0.00010958,2]
[352716439,1739271044651,-999.08,0.00010958,2]
[352716441,1739271044661,-506.77179994,0.00010958,2]
[352716443,1739271044670,-500.0,0.00010958,2]
[352716445,1739271044681,-436.17197131,0.00010958,2]
[352716447,1739271044690,-1036.38,0.00010958,2]
[352716449,1739271044699,-500.0,0.00010958,2]
[352716451,1739271044709,-500.0,0.00010958,2]
[352716453,1739271044718,-611.73,0.00010958,2]
[352716455,1739271044727,-541.66,0.00010958,2]
[352716457,1739271044736,-500.0,0.00010958,2]
[352716459,1739271044746,-500.0,0.00010958,2]
[352716461,1739271044755,-500.0,0.00010958,2]
[352716463,1739271044764,-500.0,0.00010958,2]
[352716464,1739271044773,-500.0,0.00010958,2]
[352716466,1739271044783,-500.0,0.00010958,2]
[352716468,1739271044792,-500.0,0.00010958,2]
[352716470,1739271044802,-782.88,0.00010958,2]
[352716472,1739271044811,-500.0,0.00010958,2]
[352716474,1739271044821,-500.0,0.00010958,2]
[352716476,1739271044830,-503.23,0.00010958,2]
[352716478,1739271044839,-500.0,0.00010958,2]
[352716480,1739271044849,-500.0,0.00010958,2]
[352716482,1739271044858,-500.0,0.00010958,2]
[352716484,1739271044868,-500.0,0.00010958,2]
[352716486,1739271044877,-500.0,0.00010958,2]
[352716488,1739271044887,-500.0,0.00010958,2]
[352716490,1739271044896,-500.0,0.00010958,2]
[352716492,1739271044905,-500.0,0.00010958,2]
[352716494,1739271044915,-500.0,0.00010958,2]
[352716496,1739271044924,-869.81004995,0.00010958,2]
[352716499,1739271044945,-48.18995005,0.00010958,2]
[352716501,1739271044954,-500.0,0.00010958,2]
[352716504,1739271044964,-513.35574707,0.00010958,2]
[352716506,1739271044974,-600.98,0.00010958,2]
[352716508,1739271044983,-1442.38,0.00010958,2]
[352716510,1739271044993,-500.0,0.00010958,2]
[352716512,1739271045003,-500.0,0.00010958,2]
[352716514,1739271045013,-500.0,0.00010958,2]
[352716516,1739271045022,-500.0,0.00010958,2]
[352716518,1739271045031,-1158.24670288,0.00010958,2]
[352716522,1739271045061,-172.48329712,0.00010958,2]
[352716524,1739271045072,-110.24174388,0.00010958,2]
[352716622,1739271045910,-262.6,0.00010958,2]
[352716625,1739271045922,-127.15825612,0.00010958,2]
[352716627,1739271045933,-417.24516964,0.00010958,2]
[352716629,1739271045943,-500.0,0.00010958,2]
[352716631,1739271045952,-533.1,0.00010958,2]
[352716633,1739271045962,-500.85016868,0.00010958,2]
[352716635,1739271045971,-516.44761308,0.00010958,2]
[352716637,1739271045981,-534.21,0.00010958,2]
[352716639,1739271045990,-1364.94,0.00010958,2]
[352716641,1739271045999,-503.18814578,0.00010958,2]
[352716643,1739271046008,-500.0,0.00010958,2]
[352716645,1739271046018,-500.0,0.00010958,2]
[352716647,1739271046027,-500.0,0.00010958,2]
[352716649,1739271046036,-503.210975,0.00010958,2]
[352716651,1739271046046,-500.0,0.00010958,2]
[352716653,1739271046055,-500.0,0.00010958,2]
[352716655,1739271046065,-500.0,0.00010958,2]
[352716657,1739271046075,-500.0,0.00010958,2]
[352716659,1739271046084,-500.0,0.00010958,2]
[352716661,1739271046094,-500.0,0.00010958,2]
[352716663,1739271046103,-500.0,0.00010958,2]
[352716665,1739271046113,-837.28,0.00010958,2]
[352716667,1739271046124,-504.06941918,0.00010958,2]
[352716669,1739271046133,-500.0,0.00010958,2]
[352716692,1739271046345,-519.21443223,0.00010958,2]
[352716694,1739271046355,-508.96393282,0.00010958,2]
[352716696,1739271046364,-500.0,0.00010958,2]
[352716698,1739271046373,-316.29340586,0.00010958,2]
[352716700,1739271046383,-504.48734126,0.00010958,2]
[352716702,1739271046392,-500.0,0.00010958,2]
[352716704,1739271046402,-500.0,0.00010958,2]
[352716706,1739271046411,-1933.81,0.00010958,2]
[352716708,1739271046420,-500.0,0.00010958,2]
[352716709,1739271046430,-1419.15,0.00010958,2]
[352716711,1739271046440,-1238.53,0.00010958,2]
[352716714,1739271046450,-475.18857891,0.00010958,2]
[352716716,1739271046460,-500.0,0.00010958,2]
[352716717,1739271046469,-500.0,0.00010958,2]
[352716719,1739271046478,-500.0,0.00010958,2]
[352716721,1739271046488,-500.0,0.00010958,2]
[352716723,1739271046498,-1237.17,0.00010958,2]
[352716725,1739271046508,-500.0,0.00010958,2]
[352716727,1739271046517,-500.0,0.00010958,2]
[352716729,1739271046527,-500.0,0.00010958,2]
[352716731,1739271046536,-506.44102574,0.00010958,2]
[352716733,1739271046546,-500.0,0.00010958,2]
[352716734,1739271046555,-2389.24,0.00010958,2]
[352716735,1739271046564,-500.0,0.00010958,2]
[352716736,1739271046573,-500.0,0.00010958,2]
[352716737,1739271046584,-2116.58,0.00010958,2]
[352716738,1739271046593,-500.0,0.00010958,2]
[352716739,1739271046604,-500.0,0.00010958,2]
[352716740,1739271046615,-500.0,0.00010958,2]
[352716741,1739271046624,-254.99984844,0.00010958,2]
[352716742,1739271046633,-500.0,0.00010958,2]
[352716743,1739271046642,-519.39913954,0.00010958,2]
[352716744,1739271046653,-1028.53,0.00010958,2]
[352716746,1739271046662,-1255.64,0.00010958,2]
[352716747,1739271046671,-2729.59,0.00010958,2]
[352716749,1739271046680,-500.0,0.00010958,2]
[352716751,1739271046690,-500.0,0.00010958,2]
[352716753,1739271046700,-500.0,0.00010958,2]
[352716755,1739271046709,-500.0,0.00010958,2]
[352716757,1739271046718,-504.04,0.00010958,2]
[352716759,1739271046728,-2075.39,0.00010958,2]
[352716761,1739271046738,-500.0,0.00010958,2]
[352716763,1739271046748,-500.0,0.00010958,2]
[352716765,1739271046758,-500.0,0.00010958,2]
[352716767,1739271046768,-560.06,0.00010958,2]
[352716769,1739271046777,-989.21,0.00010958,2]
[352716771,1739271046787,-500.0,0.00010958,2]
[352716773,1739271046796,-500.0,0.00010958,2]
[352716775,1739271046806,-667.54,0.00010958,2]
[352716777,1739271046816,-2379.24,0.00010958,2]
[352716779,1739271046825,-500.0,0.00010958,2]
[352716781,1739271046834,-1287.32,0.00010958,2]
[352716783,1739271046844,-1376.01,0.00010958,2]
[352716785,1739271046854,-500.0,0.00010958,2]
[352716787,1739271046863,-1262.01,0.00010958,2]
[352716789,1739271046872,-500.0,0.00010958,2]
[352716791,1739271046882,-1000.0,0.00010958,2]
[352716793,1739271046890,-500.0,0.00010958,2]
[352716795,1739271046899,-505.56750387,0.00010958,2]
[352716796,1739271046908,-500.0,0.00010958,2]
[352716798,1739271046918,-500.0,0.00010958,2]
[352716800,1739271046928,-500.0,0.00010958,2]
[352716802,1739271046937,-903.83,0.00010958,2]
[352716804,1739271046947,-2475.76,0.00010958,2]
[352716806,1739271046956,-719.07,0.00010958,2]
[352716808,1739271046966,-500.0,0.00010958,2]
[352716810,1739271046975,-500.0,0.00010958,2]
[352716812,1739271046984,-667.34,0.00010958,2]
[352716814,1739271046994,-2059.64,0.00010958,2]
[352716816,1739271047003,-500.0,0.00010958,2]
[352716818,1739271047013,-1122.26,0.00010958,2]
[352716820,1739271047023,-500.0,0.00010958,2]
[352716822,1739271047032,-507.3543246,0.00010958,2]
[352716824,1739271047041,-579.08,0.00010958,2]
[352716826,1739271047050,-500.0,0.00010958,2]
[352716828,1739271047061,-1719.14,0.00010958,2]
[352716830,1739271047070,-500.0,0.00010958,2]
[352716832,1739271047079,-500.0,0.00010958,2]
[352716834,1739271047089,-505.25272836,0.00010958,2]
[352716836,1739271047098,-782.35,0.00010958,2]
[352716838,1739271047108,-500.0,0.00010958,2]
[352716840,1739271047118,-500.0,0.00010958,2]
[352716842,1739271047128,-500.0,0.00010958,2]
[352716844,1739271047137,-574.32,0.00010958,2]
[352716846,1739271047148,-500.0,0.00010958,2]
[352716848,1739271047157,-500.0,0.00010958,2]
[352716850,1739271047167,-2050.29,0.00010958,2]
[352716852,1739271047177,-2274.36,0.00010958,2]
[352716854,1739271047187,-500.0,0.00010958,2]
[352716856,1739271047197,-500.0,0.00010958,2]
[352716858,1739271047207,-500.0,0.00010958,2]
[352716860,1739271047216,-500.0,0.00010958,2]
[352716862,1739271047227,-500.0,0.00010958,2]
[352716864,1739271047238,-500.0,0.00010958,2]
[352716866,1739271047247,-1509.89,0.00010958,2]
[352716868,1739271047257,-597.2898397,0.00010958,2]
[352716871,1739271047267,-500.0,0.00010958,2]
[352716873,1739271047277,-500.0,0.00010958,2]
[352716875,1739271047286,-548.96,0.00010958,2]
[352716877,1739271047296,-500.0,0.00010958,2]
[352716879,1739271047304,-500.0,0.00010958,2]
[352716881,1739271047314,-500.0,0.00010958,2]
[352716883,1739271047324,-743.97,0.00010958,2]
[352716885,1739271047333,-691.43,0.00010958,2]
[352716886,1739271047343,-2521.54,0.00010958,2]
[352716889,1739271047353,-500.0,0.00010958,2]
[352716891,1739271047363,-500.0,0.00010958,2]
[352716892,1739271047372,-500.0,0.00010958,2]
[352716894,1739271047382,-500.0,0.00010958,2]
[352716896,1739271047392,-673.9,0.00010958,2]
[352716898,1739271047404,-2984.04,0.00010958,2]
[352716900,1739271047413,-1311.13,0.00010958,2]
[352716902,1739271047422,-500.0,0.00010958,2]
[352716904,1739271047432,-500.0,0.00010958,2]
[352716906,1739271047443,-1401.09,0.00010958,2]
[352716908,1739271047454,-500.0,0.00010958,2]
[352716910,1739271047464,-503.11435782,0.00010958,2]
[352716912,1739271047474,-1875.16,0.00010958,2]
[352716915,1739271047484,-987.39,0.00010958,2]
[352716916,1739271047494,-500.0,0.00010958,2]
[352716919,1739271047504,-2123.75,0.00010958,2]
[352716920,1739271047514,-508.58620469,0.00010958,2]
[352716923,1739271047524,-500.0,0.00010958,2]
[352716925,1739271047535,-500.0,0.00010958,2]
[352716927,1739271047545,-500.0,0.00010958,2]
[352716929,1739271047555,-622.59,0.00010958,2]
[352716930,1739271047569,-500.0,0.00010958,2]
[352716932,1739271047582,-1093.8,0.00010958,2]
[352716934,1739271047592,-500.0,0.00010958,2]
[352716936,1739271047605,-500.0,0.00010958,2]
[352716939,1739271047618,-500.0,0.00010958,2]
[352716941,1739271047628,-500.0,0.00010958,2]
[352716943,1739271047638,-593.33,0.00010958,2]
[352716945,1739271047650,-500.0,0.00010958,2]
[352716947,1739271047660,-500.0,0.00010958,2]
[352716949,1739271047670,-1017.25,0.00010958,2]
[352716951,1739271047682,-674.37,0.00010958,2]
[352716953,1739271047694,-3245.27,0.00010958,2]
[352716955,1739271047706,-515.76288824,0.00010958,2]
[352716957,1739271047717,-1604.37,0.00010958,2]
[352716959,1739271047727,-500.0,0.00010958,2]
[352716961,1739271047737,-2118.49,0.00010958,2]
[352716963,1739271047747,-500.0,0.00010958,2]
[352716964,1739271047758,-500.0,0.00010958,2]
[352716966,1739271047769,-2638.61,0.00010958,2]
[352716968,1739271047779,-500.0,0.00010958,2]
[352716971,1739271047789,-500.0,0.00010958,2]
[352716973,1739271047799,-500.0,0.00010958,2]
[352716974,1739271047808,-503.23908938,0.00010958,2]
[352716976,1739271047817,-1400.25,0.00010958,2]
[352716978,1739271047827,-2453.25,0.00010958,2]
[352716980,1739271047836,-2108.42,0.00010958,2]
[352716982,1739271047846,-1112.44,0.00010958,2]
[352716984,1739271047855,-500.0,0.00010958,2]
[352716986,1739271047864,-501.61531479,0.00010958,2]
[352716988,1739271047874,-1011.83,0.00010958,2]
[352716990,1739271047883,-500.0,0.00010958,2]
[352716992,1739271047892,-500.0,0.00010958,2]
[352716994,1739271047901,-500.0,0.00010958,2]
[352716996,1739271047911,-1360.55,0.00010958,2]
[352716998,1739271047920,-326.71214826,0.00010958,2]
[352717000,1739271047929,-500.0,0.00010958,2]
[352717002,1739271047940,-500.0,0.00010958,2]
[352717004,1739271047949,-2377.72,0.00010958,2]
[352717006,1739271047960,-506.58004589,0.00010958,2]
[352717007,1739271047969,-500.0,0.00010958,2]
[352717010,1739271047980,-500.0,0.00010958,2]
[352717012,1739271047990,-2753.38,0.00010958,2]
[352717013,1739271048000,-500.0,0.00010958,2]
[352717015,1739271048011,-1859.32,0.00010958,2]
[352717017,1739271048021,-500.0,0.00010958,2]
[352717019,1739271048032,-2171.17,0.00010958,2]
[352717021,1739271048043,-500.0,0.00010958,2]
[352717023,1739271048054,-1015.87,0.00010958,2]
[352717025,1739271048065,-500.0,0.00010958,2]
[352717027,1739271048075,-643.98906969,0.00010958,2]
[352717030,1739271048085,-500.0,0.00010958,2]
[352717032,1739271048097,-500.0,0.00010958,2]
[352717034,1739271048107,-500.0,0.00010958,2]
[352717036,1739271048117,-500.0,0.00010958,2]
[352717038,1739271048128,-500.0,0.00010958,2]
[352717040,1739271048139,-1935.45,0.00010958,2]
[352717042,1739271048150,-153.97309969,0.00010958,2]
[352717044,1739271048161,-642.33,0.00010958,2]
[352717046,1739271048173,-500.0,0.00010958,2]
[352717048,1739271048184,-2252.79,0.00010958,2]
[352717050,1739271048198,-2004.47,0.00010958,2]
[352717052,1739271048209,-500.0,0.00010958,2]
[352717054,1739271048221,-2247.91,0.00010958,2]
[352717056,1739271048233,-500.0,0.00010958,2]
[352717058,1739271048245,-525.57,0.00010958,2]
[352717060,1739271048257,-502.71540294,0.00010958,2]
[352717062,1739271048267,-514.25108301,0.00010958,2]
[352717064,1739271048278,-500.0,0.00010958,2]
[352717066,1739271048288,-500.0,0.00010958,2]
[352717068,1739271048298,-944.43,0.00010958,2]
[352717070,1739271048309,-500.0,0.00010958,2]
[352717072,1739271048319,-500.0,0.00010958,2]
[352717074,1739271048330,-500.0,0.00010958,2]
[352717076,1739271048340,-2517.27,0.00010958,2]
[352717078,1739271048350,-500.0,0.00010958,2]
[352717080,1739271048362,-500.0,0.00010958,2]
[352717082,1739271048371,-2477.87,0.00010958,2]
[352717084,1739271048381,-500.0,0.00010958,2]
[352717086,1739271048391,-583.98,0.00010958,2]
[352717088,1739271048400,-500.0,0.00010958,2]
[352717090,1739271048409,-1062.77,0.00010958,2]
[352717092,1739271048420,-3159.28,0.00010958,2]
[352717094,1739271048430,-500.0,0.00010958,2]
[352717096,1739271048444,-500.0,0.00010958,2]
[352717098,1739271048454,-1539.54,0.00010958,2]
[352717099,1739271048464,-500.0,0.00010958,2]
[352717101,1739271048474,-7841.32,0.00010958,2]
[352717104,1739271048485,-2725.9,0.00010958,2]
[352717105,1739271048495,-819.18,0.00010958,2]
[352717108,1739271048506,-500.0,0.00010958,2]
[352717110,1739271048517,-500.0,0.00010958,2]
[352717112,1739271048527,-2572.28,0.00010958,2]
[352717114,1739271048537,-500.0,0.00010958,2]
[352717115,1739271048548,-2261.83,0.00010958,2]
[352717117,1739271048558,-626.63,0.00010958,2]
[352717119,1739271048568,-500.0,0.00010958,2]
[352717121,1739271048577,-500.0,0.00010958,2]
[352717123,1739271048588,-500.0,0.00010958,2]
[352717125,1739271048604,-500.0,0.00010958,2]
[352717127,1739271048615,-2898.37,0.00010958,2]
[352717129,1739271048626,-500.0,0.00010958,2]
[352717131,1739271048636,-543.52,0.00010958,2]
[352717133,1739271048647,-612.39,0.00010958,2]
[352717135,1739271048659,-1559.66,0.00010958,2]
[352717137,1739271048670,-500.0,0.00010958,2]
[352717139,1739271048682,-2114.42,0.00010958,2]
[352717141,1739271048695,-2777.94,0.00010958,2]
[352717143,1739271048706,-2781.01,0.00010958,2]
[352717145,1739271048717,-500.0,0.00010958,2]
[352717147,1739271048729,-371.34832869,0.00010958,2]
[352717149,1739271048739,-504.33105609,0.00010958,2]
[352717151,1739271048751,-500.0,0.00010958,2]
[352717154,1739271048762,-3343.58,0.00010958,2]
[352717156,1739271048774,-504.89439029,0.00010958,2]
[352717158,1739271048784,-722.35,0.00010958,2]
[352717159,1739271048794,-500.0,0.00010958,2]
[352717161,1739271048804,-505.58660641,0.00010958,2]
[352717163,1739271048814,-646.98,0.00010958,2]
[352717165,1739271048825,-680.5,0.00010958,2]
[352717167,1739271048835,-500.0,0.00010958,2]
[352717169,1739271048846,-502.33396658,0.00010958,2]
[352717171,1739271048856,-3314.59,0.00010958,2]
[352717173,1739271048867,-500.0,0.00010958,2]
[352717175,1739271048878,-2718.51,0.00010958,2]
[352717178,1739271048889,-500.0,0.00010958,2]
[352717180,1739271048899,-1697.96,0.00010958,2]
[352717182,1739271048909,-500.0,0.00010958,2]
[352717184,1739271048920,-206.36151587,0.00010958,2]
[352717186,1739271048930,-2085.93,0.00010958,2]
[352717188,1739271048941,-3306.22,0.00010958,2]
[352717190,1739271048953,-6712.89,0.00010958,2]
[352717192,1739271048967,-3309.94,0.00010958,2]
[352717193,1739271048977,-500.0,0.00010958,2]
[352717196,1739271048988,-500.0,0.00010958,2]
[352717198,1739271049000,-1294.59,0.00010958,2]
[352717200,1739271049010,-500.0,0.00010958,2]
[352717202,1739271049021,-500.0,0.00010958,2]
[352717203,1739271049033,-500.0,0.00010958,2]
[352717204,1739271049044,-500.0,0.00010958,2]
[352717205,1739271049055,-500.0,0.00010958,2]
[352717206,1739271049065,-2392.47,0.00010958,2]
[352717207,1739271049075,-5746.73,0.00010958,2]
[352717208,1739271049085,-500.0,0.00010958,2]
[352717209,1739271049097,-1778.17,0.00010958,2]
[352717210,1739271049108,-1024.89,0.00010958,2]
[352717211,1739271049118,-500.0,0.00010958,2]
[352717212,1739271049128,-500.0,0.00010958,2]
[352717214,1739271049139,-500.0,0.00010958,2]
[352717215,1739271049149,-500.0,0.00010958,2]
[352717217,1739271049160,-500.0,0.00010958,2]
[352717219,1739271049170,-2254.85,0.00010958,2]
[352717221,1739271049180,-1998.75,0.00010958,2]
[352717223,1739271049191,-500.0,0.00010958,2]
[352717225,1739271049200,-500.0,0.00010958,2]
[352717227,1739271049210,-2444.61,0.00010958,2]
[352717229,1739271049220,-500.0,0.00010958,2]
[352717231,1739271049230,-500.0,0.00010958,2]
[352717233,1739271049241,-1327.57,0.00010958,2]
[352717235,1739271049252,-500.0,0.00010958,2]
[352717237,1739271049262,-500.0,0.00010958,2]
[352717239,1739271049272,-500.0,0.00010958,2]
[352717241,1739271049283,-2050.29,0.00010958,2]
[352717243,1739271049293,-1344.56,0.00010958,2]
[352717245,1739271049303,-502.71,0.00010958,2]
[352717247,1739271049313,-500.0,0.00010958,2]
[352717249,1739271049323,-500.0,0.00010958,2]
[352717251,1739271049332,-3773.17,0.00010958,2]
[352717253,1739271049342,-1079.72,0.00010958,2]
[352717255,1739271049352,-500.0,0.00010958,2]
[352717257,1739271049362,-500.0,0.00010958,2]
[352717259,1739271049372,-500.0,0.00010958,2]
[352717261,1739271049382,-500.0,0.00010958,2]
[352717263,1739271049391,-2106.59,0.00010958,2]
[352717265,1739271049400,-500.0,0.00010958,2]
[352717267,1739271049410,-1382.72,0.00010958,2]
[352717269,1739271049420,-500.0,0.00010958,2]
[352717271,1739271049429,-2396.05,0.00010958,2]
[352717273,1739271049439,-500.0,0.00010958,2]
[352717275,1739271049449,-500.0,0.00010958,2]
[352717276,1739271049458,-1479.95,0.00010958,2]
[352717278,1739271049469,-500.0,0.00010958,2]
[352717281,1739271049480,-1938.31,0.00010958,2]
[352717283,1739271049490,-1636.94,0.00010958,2]
[352717285,1739271049500,-500.0,0.00010958,2]
[352717287,1739271049509,-500.0,0.00010958,2]
[352717289,1739271049519,-500.0,0.00010958,2]
[352717291,1739271049528,-500.0,0.00010958,2]
[352717293,1739271049538,-500.0,0.00010958,2]
[352717295,1739271049551,-3096.72,0.00010958,2]
[352717297,1739271049561,-2659.23,0.00010958,2]
[352717299,1739271049570,-3254.84,0.00010958,2]
[352717301,1739271049580,-1016.22,0.00010958,2]
[352717303,1739271049590,-1444.81,0.00010958,2]
[352717305,1739271049600,-500.0,0.00010958,2]
[352717307,1739271049614,-500.0,0.00010958,2]
[352717309,1739271049624,-521.29905419,0.00010958,2]
[352717311,1739271049634,-500.0,0.00010958,2]
[352717313,1739271049643,-500.0,0.00010958,2]
[352717315,1739271049654,-504.11760088,0.00010958,2]
[352717317,1739271049664,-500.0,0.00010958,2]
[352717319,1739271049674,-500.0,0.00010958,2]
[352717321,1739271049684,-798.03,0.00010958,2]
[352717323,1739271049693,-500.0,0.00010958,2]
[352717325,1739271049704,-500.0,0.00010958,2]
[352717327,1739271049714,-915.62,0.00010958,2]
[352717329,1739271049723,-562.5,0.00010958,2]
[352717331,1739271049733,-971.75,0.00010958,2]
[352717333,1739271049742,-2163.82,0.00010958,2]
[352717335,1739271049751,-500.0,0.00010958,2]
[352717337,1739271049760,-500.0,0.00010958,2]
[352717339,1739271049769,-500.0,0.00010958,2]
[352717341,1739271049780,-500.0,0.00010958,2]
[352717343,1739271049789,-500.0,0.00010958,2]
[352717345,1739271049799,-1045.45,0.00010958,2]
[352717348,1739271049809,-1524.96,0.00010958,2]
[352717350,1739271049819,-500.0,0.00010958,2]
[352717352,1739271049828,-500.0,0.00010958,2]
[352717354,1739271049837,-3622.41,0.00010958,2]
[352717355,1739271049846,-1728.73,0.00010958,2]
[352717358,1739271049856,-3736.29,0.00010958,2]
[352717378,1739271050050,-500.0,0.00010958,2]
[352717380,1739271050059,-596.39,0.00010958,2]
[352717382,1739271050070,-605.11,0.00010958,2]
[352717383,1739271050079,-909.26,0.00010958,2]
[352717385,1739271050088,-500.0,0.00010958,2]
[352717387,1739271050097,-500.0,0.00010958,2]
[352717389,1739271050106,-262.66319751,0.00010958,2]
[352717391,1739271050115,-500.0,0.00010958,2]
[352717393,1739271050125,-500.0,0.00010958,2]
[352717395,1739271050134,-500.0,0.00010958,2]
[352717397,1739271050143,-500.0,0.00010958,2]
[352717399,1739271050153,-496.88,0.00010958,2]
[352717401,1739271050163,-150.0,0.00010959,2]
[352717403,1739271050173,-150.0,0.00010959,2]
[352717405,1739271050182,-150.0,0.00010959,2]
[352717407,1739271050192,-150.0,0.00010959,2]
[352717409,1739271050202,-438.84,0.00010959,2]
[352717411,1739271050212,-2100.0,0.0001096,2]
[352717413,1739271050222,-800.0,0.0001096,2]
[352717415,1739271050232,-2200.0,0.0001096,2]
[352717417,1739271050242,-164.7089947,0.00010995,2]
[352717420,1739271050252,-172.9679767,0.00010999,2]
[352717422,1739271050261,-8010.97233029,0.00010999,2]
[352717424,1739271050270,-72732.0,0.00011,2]
[352717425,1739271050279,-24123.34380717,0.00011,2]
[352717429,1739271050300,-1152.10586708,0.00011,2]
[352717432,1739271050326,-524.07652098,0.00011,2]
[352717435,1739271050338,-7522.18915123,0.00011,2]
[352717447,1739271050447,-2850.0,0.00011,2]
[352717450,1739271050462,-38399.11337211,0.00011,2]
[352717453,1739271050489,-99185.64510001,0.00011,2]
[352718840,1739271084245,1400.0,8.22e-05,2]
[352718841,1739271084411,1700.0,8.22e-05,2]
[352718842,1739271084778,500.0,8.22e-05,2]
[352718844,1739271354729,594.2,8.219e-05,2]
[352718845,1739271844402,800.0,0.0002,120]
[352718846,1739271861562,894.3032243,0.0002,120]
[352718847,1739271986891,400.5302153,0.0002,120]
[352718851,1739272232182,-150.0,8.972e-05,2]
[352718852,1739272232192,-300.0,8.972e-05,2]
[352718853,1739272232202,-150.0,8.972e-05,2]
[352718854,1739272232211,-18259.2572,8.973e-05,2]
[352718855,1739272232220,-5000.0,8.973e-05,2]
[352718856,1739272232229,-1928.26639246,8.973e-05,2]
[352718857,1739272232239,-902.54909529,8.973e-05,2]
[352718858,1739272232250,-1000.0,9.47e-05,2]
[352718859,1739272232259,-150.0,9.514e-05,2]
[352718860,1739272232268,-500.0,9.562e-05,2]